bitfinex/quotes_BTCUSD_20251104
["timestamp","ask_amount","ask_price","bid_price","bid_amount"]
[1762295476540,0.19750526,101310.0,101290.0,0.20695284]
[1762295476744,0.28279658,101300.0,101290.0,0.20695284]
[1762295476978,0.53745285,101290.0,101280.0,0.00964434]
[1762295477230,0.57363513,101290.0,101280.0,0.00014435]
[1762295478566,1.2011978,101290.0,101280.0,0.00014435]
[1762295479361,0.23363513,101290.0,101280.0,0.00964434]
[1762295479559,0.002,101290.0,101280.0,0.92697783]
[1762295479765,0.20737595,101310.0,101300.0,0.00949999]
[1762295479919,0.25738509,101310.0,101300.0,0.00949999]
[1762295480131,0.19743336,101300.0,101290.0,0.01915846]
[1762295481559,0.1820188,101310.0,101290.0,0.01915846]
[1762295481760,0.28279658,101300.0,101290.0,0.01915846]
[1762295482174,0.28279658,101300.0,101290.0,0.00965847]
[1762295482595,0.28279658,101300.0,101290.0,0.01915846]
[1762295483314,0.28279658,101300.0,101290.0,0.00965847]
[1762295483818,0.19745285,101290.0,101280.0,0.01002836]
[1762295484008,0.19745285,101290.0,101280.0,0.00036989]
[1762295484209,0.23363513,101290.0,101280.0,0.00036989]
[1762295484447,0.23363513,101290.0,101280.0,0.00986988]
[1762295485706,0.19745285,101290.0,101280.0,0.2996407]
[1762295485916,0.66097886,101300.0,101290.0,0.00949999]
[1762295486176,0.66097886,101300.0,101290.0,0.24217131]
[1762295486177,0.23361564,101300.0,101290.0,0.24217131]
[1762295487115,0.23561564,101300.0,101290.0,0.24217131]
[1762295487309,0.31897886,101300.0,101290.0,0.01915846]
[1762295487511,0.31897886,101300.0,101280.0,0.01952835]
[1762295487512,0.19745285,101290.0,101280.0,0.01952835]
[1762295488572,0.31897886,101300.0,101280.0,0.2170007]
[1762295488802,0.5220188,101310.0,101290.0,0.27643131]
[1762295489166,0.23359615,101310.0,101300.0,0.00949999]
[1762295489563,0.19743336,101300.0,101290.0,0.01915846]
[1762295489975,0.19743336,101300.0,101290.0,0.20711132]
[1762295490329,0.19743336,101300.0,101290.0,0.21661131]
[1762295490472,0.19743336,101300.0,101290.0,0.00965847]
[1762295490670,0.001,101300.0,101290.0,0.27643131]
[1762295490898,0.23359615,101310.0,101300.0,0.00949999]
[1762295491099,0.33315312,101310.0,101300.0,0.01915846]
[1762295491264,0.33315312,101310.0,101300.0,0.00949999]
[1762295491466,0.19743336,101300.0,101290.0,0.01915846]
[1762295491679,0.19743336,101300.0,101290.0,0.24217131]
[1762295492083,0.23359615,101310.0,101290.0,0.27534131]
[1762295492295,0.23359615,101310.0,101290.0,0.24217131]
[1762295492510,0.23359615,101310.0,101300.0,0.19743336]
[1762295492942,0.23359615,101310.0,101300.0,0.00949999]
[1762295493411,0.19941387,101310.0,101300.0,0.29823182]
[1762295493649,0.54726832,101320.0,101310.0,0.20691386]
[1762295493894,0.5834506,101320.0,101310.0,0.20691386]
[1762295494706,0.2434506,101320.0,101310.0,0.20691386]
[1762295495348,0.32881382,101320.0,101310.0,0.20691386]
[1762295495730,0.32881382,101320.0,101300.0,0.24059105]
[1762295495937,0.33081382,101320.0,101310.0,0.20691386]
[1762295496254,0.33081382,101320.0,101310.0,0.00949999]
[1762295496850,0.19939439,101320.0,101310.0,0.27409233]
[1762295497721,0.19939439,101320.0,101310.0,0.07667846]
[1762295497872,0.19939439,101320.0,101310.0,0.00965847]
[1762295498094,0.28275761,101320.0,101310.0,0.01915846]
[1762295499076,0.19939439,101320.0,101310.0,0.24092233]
[1762295499281,0.002,101320.0,101310.0,0.32256233]
[1762295499558,0.19939439,101320.0,101310.0,0.32256233]
[1762295499683,0.002,101320.0,101310.0,0.32256233]
[1762295500319,0.002,101320.0,101310.0,0.34656233]
[1762295500565,0.002,101320.0,101310.0,0.950125]
[1762295501123,0.19760102,101330.0,101310.0,0.32256233]
[1762295501326,0.19739439,101320.0,101310.0,0.2798914]
[1762295501527,0.19760102,101330.0,101320.0,0.19739439]
[1762295501736,0.19760102,101330.0,101320.0,0.00965847]
[1762295501934,0.19760102,101330.0,101320.0,0.01915846]
[1762295502805,0.00222534,101330.0,101320.0,0.21655285]
[1762295503015,0.19760025,101330.0,101320.0,0.00965847]
[1762295503218,0.19760025,101330.0,101320.0,0.04971846]
[1762295503422,0.19760025,101330.0,101320.0,0.24711285]
[1762295503627,0.00022534,101330.0,101320.0,0.29718285]
[1762295504059,0.00022534,101330.0,101320.0,0.32118285]
[1762295504265,0.00222534,101330.0,101320.0,0.29718285]
[1762295504438,0.00022534,101330.0,101320.0,0.32118285]
[1762295504655,0.19760025,101330.0,101320.0,0.29718285]
[1762295504787,0.00022534,101330.0,101320.0,0.32118285]
[1762295505141,0.00022534,101330.0,101320.0,0.29718285]
[1762295505376,0.00022534,101330.0,101320.0,0.92474552]
[1762295505736,0.00022534,101330.0,101320.0,0.96918552]
[1762295506124,0.00022534,101330.0,101320.0,0.34162285]
[1762295507028,0.00022534,101330.0,101320.0,0.36562285]
[1762295507548,0.00122534,101330.0,101320.0,0.36562285]
[1762295507818,0.00022534,101330.0,101320.0,0.36562285]
[1762295507984,0.19760025,101330.0,101320.0,0.14622846]
[1762295508347,0.19760025,101330.0,101320.0,0.10178846]
[1762295508553,0.19760025,101330.0,101320.0,0.24911285]
[1762295508754,0.19760025,101330.0,101320.0,0.29918285]
[1762295509405,0.19760025,101330.0,101320.0,0.29698293]
[1762295509612,0.00022534,101330.0,101320.0,0.29698293]
[1762295510221,0.00022534,101330.0,101320.0,0.9245456]
[1762295510415,0.00022534,101330.0,101320.0,0.9485456]
[1762295510853,0.00022534,101330.0,101320.0,0.9495456]
[1762295513684,0.00022534,101330.0,101320.0,1.29116127]
[1762295513827,0.00022534,101330.0,101320.0,1.31516127]
[1762295514253,0.025,101350.0,101340.0,0.2070139]
[1762295514429,0.02514247,101350.0,101340.0,0.96826656]
[1762295514631,0.02514247,101350.0,101340.0,0.11531999]
[1762295514632,0.22247843,101350.0,101340.0,0.11531999]
[1762295514835,0.02514247,101350.0,101340.0,0.32233389]
[1762295515057,0.22247843,101350.0,101340.0,0.12497846]
[1762295515347,0.22247843,101350.0,101340.0,0.07490846]
[1762295515790,0.22247843,101350.0,101340.0,0.12497846]
[1762295516544,0.19747843,101350.0,101340.0,0.12497846]
[1762295516768,0.19747843,101350.0,101340.0,0.11547847]
[1762295516910,0.19747843,101350.0,101340.0,0.12497846]
[1762295517113,0.19747843,101350.0,101340.0,0.11547847]
[1762295517300,0.19747843,101350.0,101340.0,0.12497846]
[1762295517500,0.19847843,101350.0,101340.0,0.32233389]
[1762295517912,0.00114247,101350.0,101340.0,0.32233389]
[1762295518121,0.19847843,101350.0,101340.0,0.32233389]
[1762295518294,0.19747843,101350.0,101340.0,0.34633389]
[1762295518501,0.00014247,101350.0,101340.0,0.32233389]
[1762295519667,0.19747843,101350.0,101340.0,0.32233389]
[1762295520038,0.00014247,101350.0,101340.0,0.32233389]
[1762295520394,0.19747843,101350.0,101340.0,0.32233389]
[1762295520802,0.00014247,101350.0,101340.0,0.32233389]
[1762295521002,0.19747843,101350.0,101340.0,0.32233389]
[1762295521212,0.19747843,101350.0,101340.0,0.12497846]
[1762295521616,0.19747843,101350.0,101340.0,0.11547847]
[1762295521927,1.08850791,101350.0,101340.0,0.00965847]
[1762295522131,1.12469019,101350.0,101340.0,0.01915846]
[1762295522548,1.12469019,101350.0,101340.0,0.00965847]
[1762295522759,0.23353771,101340.0,101330.0,0.00965847]
[1762295523002,0.19737491,101330.0,101320.0,0.05975847]
[1762295523589,0.19737491,101330.0,101320.0,0.06925846]
[1762295523797,0.19737491,101330.0,101320.0,0.05975847]
[1762295523959,0.19737491,101330.0,101320.0,0.14988846]
[1762295524157,0.19737491,101330.0,101320.0,0.09981846]
[1762295524463,0.19735543,101340.0,101330.0,0.27198355]
[1762295524677,0.19735543,101340.0,101330.0,0.04434846]
[1762295524883,0.19737491,101330.0,101320.0,0.05975847]
[1762295525088,0.19737491,101330.0,101320.0,0.06925846]
[1762295525567,0.23353771,101340.0,101330.0,0.01915846]
[1762295525800,0.31890093,101340.0,101330.0,0.24172337]
[1762295525926,0.31890093,101340.0,101330.0,0.07490846]
[1762295526127,1.05639515,101350.0,101330.0,0.07490846]
[1762295526330,0.2435275,101350.0,101340.0,0.00949999]
[1762295526575,0.23353771,101340.0,101330.0,0.07490846]
[1762295527008,0.20035543,101340.0,101330.0,0.32235337]
[1762295527473,0.20734522,101350.0,101330.0,0.32235337]
[1762295527718,0.2475275,101350.0,101340.0,0.25695542]
[1762295527851,0.20734522,101350.0,101340.0,0.34724389]
[1762295528060,0.00014247,101350.0,101340.0,0.34724389]
[1762295528280,0.19747843,101350.0,101340.0,0.34724389]
[1762295528746,0.19747843,101350.0,101340.0,0.14988846]
[1762295528905,0.19747843,101350.0,101340.0,0.34724389]
[1762295529311,0.19747843,101350.0,101340.0,0.14988846]
[1762295529559,0.19747843,101350.0,101340.0,0.0501]
[1762295529714,0.19847843,101350.0,101340.0,0.05975847]
[1762295530158,0.23466071,101350.0,101340.0,0.05975847]
[1762295530584,0.23366071,101350.0,101340.0,0.0501]
[1762295530988,0.29324808,101350.0,101340.0,0.0501]
[1762295531192,0.29324808,101350.0,101340.0,0.05975847]
[1762295531348,0.20194512,101350.0,101340.0,0.10060846]
[1762295532175,0.19894512,101350.0,101340.0,0.10060846]
[1762295532386,0.19894512,101350.0,101340.0,0.29796389]
[1762295532599,0.19994512,101350.0,101340.0,0.29796389]
[1762295532819,0.00260916,101350.0,101340.0,0.36671389]
[1762295533233,0.19994512,101350.0,101340.0,0.34271389]
[1762295533637,0.25169424,101350.0,101340.0,0.06925846]
[1762295533861,0.19994512,101350.0,101340.0,0.06925846]
[1762295535082,0.2361274,101350.0,101340.0,0.0501]
[1762295535480,0.2361274,101350.0,101340.0,0.05959999]
[1762295535674,0.2361274,101350.0,101340.0,0.0501]
[1762295536058,0.2361274,101350.0,101340.0,0.05959999]
[1762295536381,0.2361274,101350.0,101340.0,0.06925846]
[1762295536897,0.2361274,101350.0,101340.0,0.10060846]
[1762295537123,0.2361274,101350.0,101340.0,0.06925846]
[1762295537937,0.2361274,101350.0,101340.0,0.29796389]
[1762295538143,0.19994512,101350.0,101340.0,0.29796389]
[1762295539185,0.00260916,101350.0,101340.0,0.34271389]
[1762295539409,0.00260916,101350.0,101340.0,1.59143831]
[1762295539607,0.00260916,101350.0,101340.0,1.58977369]
[1762295539860,0.00260916,101350.0,101340.0,1.61703534]
[1762295540067,0.00260916,101350.0,101340.0,1.64103534]
[1762295540485,0.00260916,101350.0,101340.0,0.76798541]
[1762295540723,0.00260916,101350.0,101340.0,1.61703534]
[1762295540925,0.00260916,101350.0,101340.0,1.56577369]
[1762295541095,0.00260916,101350.0,101340.0,1.59142229]
[1762295541300,0.00160916,101350.0,101340.0,1.59142229]
[1762295541643,0.00160916,101350.0,101340.0,1.59242229]
[1762295541874,0.00160916,101350.0,101340.0,1.56677369]
[1762295542090,0.00160916,101350.0,101340.0,1.5924156]
[1762295542301,0.00160916,101350.0,101340.0,0.76736567]
[1762295542517,0.00160916,101350.0,101340.0,1.6164156]
[1762295542731,0.00160916,101350.0,101340.0,1.5924156]
[1762295542947,0.00160916,101350.0,101340.0,1.59077369]
[1762295543152,0.00160916,101350.0,101340.0,1.56677369]
[1762295543359,0.00160916,101350.0,101340.0,1.64203534]
[1762295543975,0.00160916,101350.0,101340.0,1.59077369]
[1762295544819,0.00160916,101350.0,101340.0,1.22677369]
[1762295545470,0.00160916,101350.0,101340.0,0.42734923]
[1762295545724,0.00160916,101350.0,101340.0,1.22677369]
[1762295545864,0.00160916,101350.0,101340.0,1.61803534]
[1762295546076,0.00160916,101350.0,101340.0,1.60802547]
[1762295546274,0.00160916,101350.0,101340.0,1.63765119]
[1762295547087,0.00160916,101350.0,101340.0,1.67176874]
[1762295547673,0.00160916,101350.0,101340.0,1.61365119]
[1762295548050,0.00160916,101350.0,101340.0,1.63765119]
[1762295548891,0.00160916,101350.0,101340.0,1.67077133]
[1762295549265,0.00160916,101350.0,101340.0,1.67577133]
[1762295549800,0.00160916,101350.0,101340.0,1.60050968]
[1762295549940,0.00160916,101350.0,101340.0,1.59488396]
[1762295550414,0.00160916,101350.0,101340.0,1.58988396]
[1762295550645,0.19894512,101350.0,101340.0,0.73276851]
[1762295550794,0.19894512,101350.0,101340.0,0.21831141]
[1762295551000,0.19894512,101350.0,101340.0,0.06925846]
[1762295551427,0.00160916,101350.0,101340.0,1.19276382]
[1762295551589,0.00160916,101350.0,101340.0,1.19176382]
[1762295551781,0.19894512,101350.0,101340.0,1.19176382]
[1762295551987,0.00160916,101350.0,101340.0,1.19176382]
[1762295552187,0.00160916,101350.0,101340.0,1.21576382]
[1762295552381,0.00160916,101350.0,101340.0,0.34271389]
[1762295552629,0.00160916,101350.0,101340.0,1.19176382]
[1762295553629,0.19894512,101350.0,101340.0,0.34271389]
[1762295554033,0.19894512,101350.0,101340.0,0.13585847]
[1762295554462,0.19894512,101350.0,101340.0,0.14535846]
[1762295554663,0.00160916,101350.0,101340.0,1.19176382]
[1762295555066,0.00160916,101350.0,101340.0,1.21735677]
[1762295555683,0.00160916,101350.0,101340.0,0.39230684]
[1762295555890,0.00160916,101350.0,101340.0,1.24135677]
[1762295556119,0.00160916,101350.0,101340.0,1.21735677]
[1762295556319,0.00160916,101350.0,101340.0,1.24135677]
[1762295556459,0.00160916,101350.0,101340.0,1.21735677]
[1762295557446,0.00160916,101350.0,101340.0,1.21835677]
[1762295557647,0.20716315,101370.0,101360.0,0.01915846]
[1762295558215,0.20766371,101370.0,101360.0,0.01915846]
[1762295558617,0.20766371,101370.0,101360.0,0.04903846]
[1762295558816,0.20766371,101370.0,101360.0,0.24635495]
[1762295559013,0.20766371,101370.0,101360.0,0.29341495]
[1762295559319,0.00050056,101370.0,101360.0,0.29341495]
[1762295559691,0.00050056,101370.0,101360.0,1.14246488]
[1762295559895,0.00150056,101370.0,101360.0,1.16646488]
[1762295560519,0.00150056,101370.0,101360.0,1.14246488]
[1762295560760,0.00050056,101370.0,101360.0,1.14246488]
[1762295561417,0.00050056,101370.0,101360.0,0.29341495]
[1762295561833,0.00050056,101370.0,101360.0,0.29441495]
[1762295562351,0.00050056,101370.0,101360.0,0.31841495]
[1762295562538,0.00050056,101370.0,101360.0,0.33877495]
[1762295562752,0.00050056,101370.0,101360.0,0.36277495]
[1762295562924,0.00050056,101370.0,101360.0,1.21182488]
[1762295563305,0.00050056,101370.0,101360.0,0.36277495]
[1762295563506,0.00050056,101370.0,101360.0,1.21082488]
[1762295563707,0.00150056,101370.0,101360.0,1.21082488]
[1762295564073,0.00050056,101370.0,101360.0,1.21082488]
[1762295564551,0.00050056,101370.0,101360.0,1.18682488]
[1762295564928,0.00050056,101370.0,101360.0,1.21082488]
[1762295565336,0.00050056,101370.0,101360.0,1.23641783]
[1762295565930,0.00050056,101370.0,101360.0,1.21082488]
[1762295567242,0.00050056,101370.0,101360.0,1.21241783]
[1762295567406,0.00050056,101370.0,101360.0,1.23641783]
[1762295567752,0.00050056,101370.0,101360.0,1.21241783]
[1762295567953,0.00050056,101370.0,101360.0,1.23641783]
[1762295568224,0.54542096,101390.0,101380.0,0.00965847]
[1762295568391,0.54556554,101390.0,101380.0,0.01915846]
[1762295568861,0.54606599,101390.0,101380.0,0.01915846]
[1762295569905,0.54806599,101390.0,101380.0,0.01915846]
[1762295570502,0.00264503,101390.0,101380.0,0.24615602]
[1762295570704,0.00264503,101390.0,101380.0,0.29124602]
[1762295571559,0.00264503,101390.0,101380.0,0.31524602]
[1762295571760,0.00264503,101390.0,101380.0,0.29124602]
[1762295572597,0.00064503,101390.0,101380.0,0.29124602]
[1762295572762,0.00164503,101390.0,101380.0,0.29124602]
[1762295573163,0.19890314,101390.0,101380.0,0.29124602]
[1762295573587,0.00164503,101390.0,101380.0,0.29124602]
[1762295573795,0.00164503,101390.0,101380.0,0.31524602]
[1762295574025,0.00164503,101390.0,101380.0,0.29124602]
[1762295574849,0.00164503,101390.0,101380.0,0.31524602]
[1762295575041,0.00164503,101390.0,101380.0,1.14029595]
[1762295575494,0.19890314,101390.0,101380.0,1.14029595]
[1762295576254,0.00164503,101390.0,101380.0,0.29124602]
[1762295576625,0.19890314,101390.0,101380.0,0.31524602]
[1762295576840,0.00164503,101390.0,101380.0,1.18461595]
[1762295576997,0.00164503,101390.0,101380.0,1.21020944]
[1762295577202,0.00164503,101390.0,101380.0,0.36115951]
[1762295577414,0.00164503,101390.0,101380.0,1.18461595]
[1762295577632,0.00164503,101390.0,101380.0,1.22470945]
[1762295577941,0.00164503,101390.0,101380.0,1.21020944]
[1762295578096,0.00164503,101390.0,101380.0,1.22470945]
[1762295578436,0.00164503,101390.0,101380.0,1.01174359]
[1762295578819,0.00164503,101390.0,101380.0,0.38515951]
[1762295579018,0.00164503,101390.0,101380.0,1.01174359]
[1762295579224,0.00064503,101390.0,101380.0,1.01174359]
[1762295579432,0.00064503,101390.0,101380.0,0.98774359]
[1762295579668,0.00064503,101390.0,101380.0,1.01174359]
[1762295580528,0.00064503,101390.0,101380.0,0.98774359]
[1762295580748,0.00064503,101390.0,101380.0,1.35174359]
[1762295580956,0.00064503,101390.0,101380.0,1.38586373]
[1762295581879,0.00064503,101390.0,101380.0,1.38583507]
[1762295582284,0.00064503,101390.0,101380.0,1.36183507]
[1762295582494,0.00064503,101390.0,101380.0,1.38583507]
[1762295583452,0.0002,101400.0,101390.0,0.28021307]
[1762295583653,0.00068184,101400.0,101390.0,1.00359715]
[1762295584035,0.00093201,101400.0,101390.0,1.01325562]
[1762295584237,0.00093201,101400.0,101390.0,0.98925562]
[1762295584433,0.00093201,101400.0,101390.0,1.01325562]
[1762295584607,0.00193201,101400.0,101390.0,1.01325562]
[1762295587081,0.00193201,101400.0,101390.0,0.98925562]
[1762295587305,0.00193201,101400.0,101390.0,1.01325562]
[1762295587900,0.00193201,101400.0,101390.0,0.98925562]
[1762295588116,0.00193201,101400.0,101390.0,0.49759959]
[1762295588263,0.00193201,101400.0,101390.0,1.12418367]
[1762295588462,0.00193201,101400.0,101390.0,0.47359959]
[1762295588671,0.00193201,101400.0,101390.0,1.57604301]
[1762295588872,0.00193201,101400.0,101390.0,1.60004301]
[1762295589581,0.00193201,101400.0,101390.0,1.57604301]
[1762295589762,0.00193201,101400.0,101390.0,1.60004301]
[1762295590447,0.00193201,101400.0,101390.0,1.59504301]
[1762295591561,0.00193201,101400.0,101390.0,1.57104301]
[1762295591890,0.00193201,101400.0,101390.0,1.59504301]
[1762295592435,0.00193201,101400.0,101390.0,1.93504301]
[1762295592640,0.00193201,101400.0,101390.0,1.96916315]
[1762295593063,0.00193201,101400.0,101390.0,1.94359832]
[1762295593242,0.00193201,101400.0,101390.0,1.94517883]
[1762295593439,0.00093201,101400.0,101390.0,1.96917883]
[1762295593643,0.00093201,101400.0,101390.0,1.91959832]
[1762295593892,0.00093201,101400.0,101390.0,1.99685997]
[1762295594276,0.00093201,101400.0,101390.0,1.97285997]
[1762295594474,0.00093201,101400.0,101390.0,1.99685997]
[1762295594719,0.00093201,101400.0,101390.0,2.00080808]
[1762295594898,0.00093201,101400.0,101390.0,2.01287022]
[1762295595103,1e-08,101400.0,101390.0,2.56409193]
[1762295595278,1e-08,101400.0,101390.0,2.59180865]
[1762295595919,1e-08,101400.0,101390.0,2.56780865]
[1762295596120,1e-08,101400.0,101390.0,1.97840466]
[1762295596319,1e-08,101400.0,101390.0,1.99482319]
[1762295596573,1e-08,101400.0,101390.0,1.9793232]
[1762295596728,1e-08,101400.0,101390.0,0.67946319]
[1762295596886,1e-08,101400.0,101390.0,1.43269332]
[1762295597098,1e-08,101400.0,101390.0,1.3946037]
[1762295597450,1e-08,101400.0,101390.0,1.40610369]
[1762295597673,1e-08,101400.0,101390.0,1.06610369]
[1762295597878,1e-08,101400.0,101390.0,1.06410369]
[1762295598404,1e-08,101400.0,101390.0,1.16333737]
[1762295598605,1e-08,101400.0,101390.0,1.50333737]
[1762295598819,1e-08,101400.0,101390.0,1.48785977]
[1762295599030,1e-08,101400.0,101390.0,1.56858645]
[1762295599224,0.00100001,101400.0,101390.0,1.59258645]
[1762295599453,0.00100001,101400.0,101390.0,1.56297667]
[1762295599864,1e-08,101400.0,101390.0,1.56297667]
[1762295600238,1e-08,101400.0,101390.0,1.56397667]
[1762295600474,1e-08,101400.0,101390.0,1.56297667]
[1762295600679,1e-08,101400.0,101390.0,1.53897667]
[1762295600881,0.20707004,101430.0,101420.0,0.03250999]
[1762295601153,0.20721451,101430.0,101420.0,0.00949999]
[1762295601376,0.00014447,101430.0,101420.0,0.26818822]
[1762295601645,0.00014447,101430.0,101420.0,0.31325822]
[1762295602467,0.00114447,101430.0,101420.0,0.31325822]
[1762295602821,0.00114447,101430.0,101420.0,0.33725822]
[1762295603241,0.28368801,101430.0,101420.0,0.01915846]
[1762295606206,0.31987029,101430.0,101420.0,0.00949999]
[1762295606626,0.32062059,101430.0,101420.0,0.00949999]
[1762295606766,0.19907509,101430.0,101420.0,0.01915846]
[1762295608546,0.19907509,101430.0,101420.0,0.24517822]
[1762295609315,0.19907509,101430.0,101420.0,0.29024822]
[1762295609513,0.00189477,101430.0,101420.0,0.29024822]
[1762295609913,0.00189477,101430.0,101420.0,0.31424822]
[1762295610885,0.00189477,101430.0,101420.0,0.34995456]
[1762295611705,0.00189477,101430.0,101420.0,0.37395456]
[1762295612119,0.00189477,101430.0,101420.0,0.34995456]
[1762295612323,0.00189477,101430.0,101420.0,0.34995711]
[1762295612733,0.00089477,101430.0,101420.0,0.34995711]
[1762295612919,0.00089477,101430.0,101420.0,1.0004125]
[1762295613245,0.00189477,101430.0,101420.0,0.9764125]
[1762295613426,0.00189477,101430.0,101420.0,0.94232288]
[1762295613682,0.00189477,101430.0,101420.0,0.31586749]
[1762295613879,0.00189477,101430.0,101420.0,0.33986749]
[1762295614258,0.00189477,101430.0,101420.0,0.31586749]
[1762295614806,8e-05,101440.0,101430.0,0.25889898]
[1762295614950,8e-05,101440.0,101430.0,0.37850898]
[1762295615150,0.19724088,101440.0,101430.0,0.35450898]
[1762295615570,8e-05,101440.0,101430.0,0.35450898]
[1762295616146,0.00108,101440.0,101430.0,0.35450898]
[1762295616783,0.19824088,101440.0,101430.0,0.35450898]
[1762295617000,0.00108,101440.0,101430.0,0.35450898]
[1762295617569,0.00108,101440.0,101430.0,0.37850898]
[1762295618197,0.19824088,101440.0,101430.0,0.11115866]
[1762295619764,0.19824088,101440.0,101430.0,0.10165867]
[1762295619992,0.00108,101440.0,101430.0,0.30833898]
[1762295620205,0.19824088,101440.0,101430.0,0.30833898]
[1762295620441,0.19824088,101440.0,101430.0,0.05221867]
[1762295620647,0.38341108,101440.0,101430.0,0.0425602]
[1762295620856,0.9103095,101440.0,101430.0,0.0425602]
[1762295621072,0.32003639,101440.0,101430.0,0.0425602]
[1762295621346,0.94649178,101440.0,101430.0,0.0425602]
[1762295621765,0.94649178,101440.0,101430.0,0.05206019]
[1762295621973,0.94549178,101440.0,101430.0,0.0425602]
[1762295622399,0.96867274,101440.0,101430.0,0.0425602]
[1762295622814,0.96867274,101440.0,101430.0,0.05206019]
[1762295623025,0.34221735,101440.0,101430.0,0.05206019]
[1762295623239,0.96867274,101440.0,101430.0,0.05206019]
[1762295624288,0.96867274,101440.0,101430.0,0.24924051]
[1762295624708,0.96867274,101440.0,101430.0,0.05206019]
[1762295624939,0.29965715,101440.0,101430.0,0.00949999]
[1762295625617,0.27647619,101440.0,101430.0,0.00949999]
[1762295626061,0.03643229,101440.0,101430.0,0.20668031]
[1762295626284,0.19741089,101440.0,101430.0,0.01915846]
[1762295627828,0.19741089,101440.0,101430.0,0.21633878]
[1762295628057,0.89198904,101450.0,101430.0,0.21633878]
[1762295628287,0.19716088,101440.0,101430.0,0.21633878]
[1762295628510,0.74826935,101440.0,101430.0,0.21633878]
[1762295629213,0.19716088,101440.0,101430.0,0.21633878]
[1762295629438,1.1928244,101450.0,101440.0,0.00949999]
[1762295630707,0.65868694,101450.0,101440.0,0.03775999]
[1762295630919,1.17361313,101450.0,101440.0,0.24457934]
[1762295631131,1.17361313,101450.0,101440.0,0.21631934]
[1762295631348,0.34,101450.0,101440.0,0.28740934]
[1762295631584,0.54014144,101450.0,101440.0,0.28740934]
[1762295631806,0.53714144,101450.0,101440.0,0.24457934]
[1762295632022,0.53714144,101450.0,101440.0,0.28740934]
[1762295632223,0.19814144,101450.0,101440.0,0.24457934]
[1762295632594,0.001,101450.0,101440.0,0.24457934]
[1762295632825,0.001,101450.0,101440.0,0.28740934]
[1762295633070,0.001,101450.0,101440.0,0.01915846]
[1762295633071,0.28350466,101450.0,101440.0,0.01915846]
[1762295633279,0.28350466,101450.0,101440.0,0.04741846]
[1762295633480,0.28350466,101450.0,101440.0,0.24457934]
[1762295633681,0.19814144,101450.0,101440.0,0.24457934]
[1762295633816,0.19814144,101450.0,101440.0,0.28740934]
[1762295634335,0.28350466,101450.0,101440.0,0.28740934]
[1762295634721,0.001,101450.0,101440.0,0.83851781]
[1762295634920,0.001,101450.0,101440.0,0.86251781]
[1762295635119,0.00125,101450.0,101440.0,0.86251781]
[1762295635320,0.00125,101450.0,101440.0,0.83851781]
[1762295635756,0.00125,101450.0,101440.0,0.86251781]
[1762295636313,0.00125,101450.0,101440.0,0.83851781]
[1762295637282,0.00125,101450.0,101440.0,0.86251781]
[1762295637482,0.00125,101450.0,101440.0,1.41362628]
[1762295637721,0.00125,101450.0,101440.0,1.38962628]
[1762295637918,0.00025,101450.0,101440.0,1.41527516]
[1762295638389,0.00025,101450.0,101440.0,1.43927516]
[1762295638639,0.00025,101450.0,101440.0,1.41527516]
[1762295638864,0.00025,101450.0,101440.0,0.33705822]
[1762295639064,0.00025,101450.0,101440.0,0.83851781]
[1762295639275,0.00025,101450.0,101440.0,0.83951781]
[1762295639483,0.00025,101450.0,101440.0,1.39062628]
[1762295639981,0.00025,101450.0,101440.0,1.44027516]
[1762295640308,0.00025,101450.0,101440.0,0.86476758]
[1762295640715,0.00025,101450.0,101440.0,1.22876758]
[1762295640919,0.00025,101450.0,101440.0,1.2628572]
[1762295641358,0.00025,101450.0,101440.0,1.34822042]
[1762295641721,0.00025,101450.0,101440.0,0.71214784]
[1762295641930,0.00025,101450.0,101440.0,1.2388572]
[1762295642124,0.00025,101450.0,101440.0,1.26432522]
[1762295642350,0.00025,101450.0,101440.0,1.28832522]
[1762295642552,0.00025,101450.0,101440.0,1.26432522]
[1762295642750,0.00025,101450.0,101440.0,1.28832522]
[1762295642953,0.00025,101450.0,101440.0,1.37368844]
[1762295643161,0.00025,101450.0,101440.0,1.31559882]
[1762295643364,0.00025,101450.0,101440.0,0.79448595]
[1762295643563,1e-08,101450.0,101440.0,1.96608695]
[1762295643795,1e-08,101450.0,101440.0,1.98394842]
[1762295644001,0.0210072,101480.0,101470.0,0.55626105]
[1762295644213,0.02115167,101480.0,101470.0,1.23969452]
[1762295644423,0.02115167,101480.0,101470.0,1.66365833]
[1762295644612,0.02190142,101480.0,101470.0,1.66365833]
[1762295645142,0.02190142,101480.0,101470.0,1.73753484]
[1762295645462,0.02190142,101480.0,101470.0,1.70766894]
[1762295645662,0.02190142,101480.0,101470.0,1.70966894]
[1762295645864,0.02190142,101480.0,101470.0,1.70766894]
[1762295646041,0.01690142,101480.0,101470.0,1.73725679]
[1762295646241,0.01690142,101480.0,101470.0,1.74125679]
[1762295646855,0.01690142,101480.0,101470.0,1.7157126]
[1762295647055,0.01690142,101480.0,101470.0,1.74123419]
[1762295647844,0.01690142,101480.0,101470.0,1.75122996]
[1762295648286,0.01690142,101480.0,101470.0,1.71710761]
[1762295648487,0.01690142,101480.0,101470.0,1.76130761]
[1762295648691,0.01690142,101480.0,101470.0,1.77142996]
[1762295648898,0.01690142,101480.0,101470.0,1.79542996]
[1762295649257,0.01690142,101480.0,101470.0,1.81761224]
[1762295649463,0.01690142,101480.0,101470.0,1.84161224]
[1762295649677,0.01690142,101480.0,101470.0,1.83161224]
[1762295649882,0.01690142,101480.0,101470.0,1.84161224]
[1762295650083,0.01690142,101480.0,101470.0,0.9950919]
[1762295650431,10.289,101500.0,101490.0,0.58022221]
[1762295650635,10.289,101500.0,101490.0,1.52206255]
[1762295650846,10.289,101500.0,101490.0,0.69504221]
[1762295651051,10.289,101500.0,101490.0,1.54156255]
[1762295651261,10.289,101500.0,101490.0,1.57114468]
[1762295651519,10.289,101500.0,101490.0,1.59514468]
[1762295651997,10.289,101500.0,101490.0,1.60114468]
[1762295652204,10.289,101500.0,101490.0,1.59514468]
[1762295652414,9.45632973,101500.0,101490.0,1.64532696]
[1762295652625,7.75146465,101500.0,101490.0,5.81171396]
[1762295652825,7.42663122,101500.0,101490.0,6.49026645]
[1762295653030,6.96195767,101500.0,101490.0,6.46177883]
[1762295653235,6.96195767,101500.0,101490.0,6.52915197]
[1762295653236,6.66642851,101500.0,101490.0,6.52915197]
[1762295653440,6.66642851,101500.0,101490.0,6.44197883]
[1762295653441,6.56777795,101500.0,101490.0,6.44197883]
[1762295653613,5.83328948,101500.0,101490.0,6.37851883]
[1762295653817,3.94820476,101500.0,101490.0,6.37851883]
[1762295654036,3.94820476,101500.0,101490.0,6.35501885]
[1762295654037,3.91865215,101500.0,101490.0,6.35501885]
[1762295654235,3.67428059,101500.0,101490.0,6.32989225]
[1762295654444,3.29533748,101500.0,101490.0,6.35389225]
[1762295654650,3.10712801,101500.0,101490.0,6.40774021]
[1762295654858,2.30733129,101500.0,101490.0,6.41324019]
[1762295655075,2.27768718,101500.0,101490.0,6.43724019]